[Event "*** Titled Tuesday Blitz"]
[Site "Chess.com"]
[Date "2020.05.05"]
[Round "8"]
[White "Beca95"]
[Black "Chepaschess"]
[Result "1-0"]
[WhiteElo "2873"]
[BlackElo "2735"]
[TimeControl "180+1"]
[EndTime "11:36:47 PDT"]
[Termination "Beca95 won by resignation"]

1. Nf3 {[%clk 0:03:00.9]} 1... c5 {[%clk 0:02:57.6]} 2. e4 {[%clk 0:02:57.1]}
2... d6 {[%clk 0:02:57.2]} 3. d4 {[%clk 0:02:56.8]} 3... cxd4 {[%clk 0:02:57.4]}
4. Qxd4 {[%clk 0:02:56.5]} 4... Nc6 {[%clk 0:02:56.6]} 5. Bb5 {[%clk 0:02:54.7]}
5... a6 {[%clk 0:02:57]} 6. Bxc6+ {[%clk 0:02:54.1]} 6... bxc6 {[%clk
0:02:57.9]} 7. c4 {[%clk 0:02:52.1]} 7... e5 {[%clk 0:02:58.2]} 8. Qd3 {[%clk
0:02:51.5]} 8... Ne7 {[%clk 0:02:57.1]} 9. Nc3 {[%clk 0:02:50.7]} 9... Ng6
{[%clk 0:02:55.1]} 10. Bg5 {[%clk 0:02:39.3]} 10... f6 {[%clk 0:02:51.2]} 11.
Be3 {[%clk 0:02:38.5]} 11... Be6 {[%clk 0:02:50.9]} 12. O-O {[%clk 0:02:35.6]}
12... Be7 {[%clk 0:02:45.8]} 13. Rad1 {[%clk 0:02:33.2]} 13... O-O {[%clk
0:02:45.1]} 14. b3 {[%clk 0:02:18.2]} 14... Qa5 {[%clk 0:02:37.6]} 15. Bd2
{[%clk 0:02:15.4]} 15... Qc7 {[%clk 0:02:35.9]} 16. Rc1 {[%clk 0:02:12.7]} 16...
Qb7 {[%clk 0:02:34.1]} 17. Rfe1 {[%clk 0:02:00.6]} 17... Rad8 {[%clk 0:02:32.6]}
18. h3 {[%clk 0:01:55.7]} 18... Rd7 {[%clk 0:02:25.2]} 19. Be3 {[%clk
0:01:45.7]} 19... f5 {[%clk 0:02:23.4]} 20. Bg5 {[%clk 0:01:40.2]} 20... fxe4
{[%clk 0:02:04.6]} 21. Qxe4 {[%clk 0:01:37.2]} 21... d5 {[%clk 0:01:56]} 22.
cxd5 {[%clk 0:01:22.9]} 22... cxd5 {[%clk 0:01:56.9]} 23. Qe2 {[%clk 0:01:10.1]}
23... Rxf3 {[%clk 0:01:52.5]} 24. Bxe7 {[%clk 0:01:09.1]} 24... Rxc3 {[%clk
0:01:49.6]} 25. Rxc3 {[%clk 0:01:08.5]} 25... Rxe7 {[%clk 0:01:50.2]} 26. Rec1
{[%clk 0:01:08.7]} 26... d4 {[%clk 0:01:46.9]} 27. Rc6 {[%clk 0:01:05.9]} 27...
Qb5 {[%clk 0:01:34.4]} 28. Qf3 {[%clk 0:01:02.6]} 28... h6 {[%clk 0:01:20.4]}
29. Qe4 {[%clk 0:00:52.3]} 29... Kh7 {[%clk 0:01:19.2]} 30. R1c5 {[%clk
0:00:49.3]} 30... Qb7 {[%clk 0:00:50.6]} 31. Rxe5 {[%clk 0:00:48.5]} 31... Qxc6
{[%clk 0:00:29]} 32. Qxc6 {[%clk 0:00:47.9]} 32... Nxe5 {[%clk 0:00:29.7]} 33.
Qd6 {[%clk 0:00:43.3]} 33... Ng6 {[%clk 0:00:30]} 34. Qxd4 {[%clk 0:00:42.9]}
34... Bf7 {[%clk 0:00:26.4]} 35. Kh2 {[%clk 0:00:41.2]} 35... Re6 {[%clk
0:00:26]} 36. Qc5 {[%clk 0:00:40.8]} 36... Rf6 {[%clk 0:00:26.4]} 37. f3 {[%clk
0:00:40.3]} 37... Nf4 {[%clk 0:00:25.6]} 38. Qc2+ {[%clk 0:00:37]} 38... Bg6
{[%clk 0:00:24.5]} 39. Qd2 {[%clk 0:00:37]} 39... Bf7 {[%clk 0:00:24.4]} 40. b4
{[%clk 0:00:36.8]} 40... g5 {[%clk 0:00:24]} 41. g3 {[%clk 0:00:33.4]} 41... Nd5
{[%clk 0:00:22.5]} 42. Qd4 {[%clk 0:00:31.9]} 42... Rc6 {[%clk 0:00:19.6]} 43.
Qd3+ {[%clk 0:00:30.3]} 43... Kg7 {[%clk 0:00:19.4]} 44. a3 {[%clk 0:00:30.5]}
44... Rc3 {[%clk 0:00:18.2]} 45. Qxa6 {[%clk 0:00:30.3]} 45... Rc2+ {[%clk
0:00:17.7]} 46. Kg1 {[%clk 0:00:29.1]} 46... Rc1+ {[%clk 0:00:15.5]} 47. Kf2
{[%clk 0:00:28.8]} 47... Rc2+ {[%clk 0:00:16]} 48. Ke1 {[%clk 0:00:29.1]} 48...
Rc3 {[%clk 0:00:14.4]} 49. b5 {[%clk 0:00:16.1]} 49... Rxf3 {[%clk 0:00:13]} 50.
b6 {[%clk 0:00:16.5]} 50... Nxb6 {[%clk 0:00:07]} 51. Qxb6 {[%clk 0:00:17.4]}
51... Rxg3 {[%clk 0:00:07.5]} 52. Kf2 {[%clk 0:00:16.9]} 52... Rxh3 {[%clk
0:00:07.1]} 53. a4 {[%clk 0:00:17.3]} 53... Rb3 {[%clk 0:00:06.4]} 54. Qd4+
{[%clk 0:00:16.7]} 54... Kg8 {[%clk 0:00:06.5]} 55. a5 {[%clk 0:00:16.9]} 55...
Ra3 {[%clk 0:00:05.8]} 56. Qb4 {[%clk 0:00:17.1]} 56... Ra2+ {[%clk 0:00:05.7]}
57. Ke3 {[%clk 0:00:16.9]} 57... h5 {[%clk 0:00:06]} 58. Qc5 {[%clk 0:00:16.6]}
58... g4 {[%clk 0:00:06.1]} 59. Kf4 {[%clk 0:00:16.7]} 59... g3 {[%clk
0:00:02.7]} 60. Kxg3 {[%clk 0:00:16.7]} 60... Rb2 {[%clk 0:00:02.4]} 61. Kh4
{[%clk 0:00:16.1]} 61... Rg2 {[%clk 0:00:02.3]} 62. Kh3 {[%clk 0:00:14.8]} 62...
Rg6 {[%clk 0:00:02.1]} 63. Qb5 {[%clk 0:00:13.6]} 63... Be6+ {[%clk 0:00:02.3]}
64. Kh2 {[%clk 0:00:14]} 64... Bf7 {[%clk 0:00:01.1]} 65. a6 {[%clk 0:00:14.1]}
65... Kg7 {[%clk 0:00:01.7]} 66. a7 {[%clk 0:00:14]} 1-0

[Event "*** Titled Tuesday Blitz"]
[Site "Chess.com"]
[Date "2020.05.05"]
[Round "8"]
[White "mamey78"]
[Black "Chessalary"]
[Result "1-0"]
[WhiteElo "2323"]
[BlackElo "2166"]
[TimeControl "180+1"]
[EndTime "11:36:52 PDT"]
[Termination "mamey78 won by resignation"]

1. e4 {[%clk 0:02:59.9]} 1... c5 {[%clk 0:02:59.9]} 2. Nf3 {[%clk 0:02:58.4]}
2... d6 {[%clk 0:03:00]} 3. d4 {[%clk 0:02:57.7]} 3... cxd4 {[%clk 0:03:00.9]}
4. Nxd4 {[%clk 0:02:57.9]} 4... Nf6 {[%clk 0:03:01.8]} 5. Nc3 {[%clk 0:02:58.1]}
5... a6 {[%clk 0:03:02.3]} 6. Bg5 {[%clk 0:02:57.8]} 6... e6 {[%clk 0:03:02.5]}
7. f4 {[%clk 0:02:57.5]} 7... Nbd7 {[%clk 0:03:03]} 8. Qe2 {[%clk 0:02:53.9]}
8... Qc7 {[%clk 0:03:02.1]} 9. O-O-O {[%clk 0:02:53.4]} 9... Be7 {[%clk
0:02:58.7]} 10. g4 {[%clk 0:02:52.6]} 10... O-O {[%clk 0:02:58.2]} 11. h4 {[%clk
0:02:49.2]} 11... b5 {[%clk 0:02:55.9]} 12. a3 {[%clk 0:02:42.4]} 12... Bb7
{[%clk 0:02:54.3]} 13. h5 {[%clk 0:02:39.7]} 13... Rac8 {[%clk 0:02:49.2]} 14.
Bh4 {[%clk 0:02:39.3]} 14... Nc5 {[%clk 0:02:45]} 15. Bg2 {[%clk 0:02:35.8]}
15... Qa5 {[%clk 0:02:32.5]} 16. g5 {[%clk 0:02:19]} 16... Nfd7 {[%clk
0:02:30.9]} 17. g6 {[%clk 0:02:16.4]} 17... Bxh4 {[%clk 0:02:28.8]} 18. Rxh4
{[%clk 0:02:10.9]} 18... b4 {[%clk 0:02:26.1]} 19. axb4 {[%clk 0:02:08.4]} 19...
Qxb4 {[%clk 0:02:27]} 20. h6 {[%clk 0:01:56]} 20... fxg6 {[%clk 0:02:04.2]} 21.
hxg7 {[%clk 0:01:55]} 21... Rf7 {[%clk 0:01:56.7]} 22. f5 {[%clk 0:01:47]} 22...
e5 {[%clk 0:01:23.7]} 23. Ne6 {[%clk 0:01:37.7]} 23... gxf5 {[%clk 0:01:12.2]}
24. Qh5 {[%clk 0:01:26.8]} 24... Nf6 {[%clk 0:00:59.4]} 25. Qxf5 {[%clk
0:01:21.7]} 25... Nxe6 {[%clk 0:00:39.6]} 26. Qxe6 {[%clk 0:01:20]} 26... Qc4
{[%clk 0:00:39.6]} 27. Bh3 {[%clk 0:01:06]} 27... Rc7 {[%clk 0:00:17.7]} 28.
Qxc4 {[%clk 0:01:03.8]} 28... Rxc4 {[%clk 0:00:17.2]} 29. Be6 {[%clk 0:01:04]}
29... Rd4 {[%clk 0:00:14.7]} 30. Rf1 {[%clk 0:00:58]} 30... Kxg7 {[%clk
0:00:11.7]} 31. Bxf7 {[%clk 0:00:56.1]} 31... Kxf7 {[%clk 0:00:12.6]} 32. Rxh7+
{[%clk 0:00:55.7]} 32... Ke6 {[%clk 0:00:13.5]} 33. Rxb7 {[%clk 0:00:55.5]}
33... Nxe4 {[%clk 0:00:12.2]} 34. Nxe4 {[%clk 0:00:51.4]} 34... Rxe4 {[%clk
0:00:13.1]} 35. Rb6 {[%clk 0:00:49.7]} 35... Ra4 {[%clk 0:00:12.9]} 36. Rd1
{[%clk 0:00:47.8]} 36... e4 {[%clk 0:00:11.4]} 37. Rdxd6+ {[%clk 0:00:44.3]}
37... Ke5 {[%clk 0:00:11.7]} 38. Rxa6 {[%clk 0:00:45.2]} 38... Rb4 {[%clk
0:00:07.8]} 39. b3 {[%clk 0:00:41.1]} 39... Kf4 {[%clk 0:00:07.1]} 40. Rf6+
{[%clk 0:00:39.6]} 40... Ke3 {[%clk 0:00:07.1]} 41. Rae6 {[%clk 0:00:37.8]}
41... Rb8 {[%clk 0:00:02.5]} 42. Rf7 {[%clk 0:00:36.6]} 42... Rd8 {[%clk
0:00:03]} 43. Rfe7 {[%clk 0:00:36.3]} 43... Rd4 {[%clk 0:00:03.2]} 44. Rxe4+
{[%clk 0:00:36.2]} 44... Rxe4 {[%clk 0:00:03]} 45. Rxe4+ {[%clk 0:00:37.1]}
45... Kxe4 {[%clk 0:00:03.9]} 46. Kb2 {[%clk 0:00:37.3]} 46... Kd5 {[%clk
0:00:04.8]} 47. c4+ {[%clk 0:00:38]} 47... Kc5 {[%clk 0:00:05.7]} 48. Kc3 {[%clk
0:00:38.2]} 48... Kb6 {[%clk 0:00:05.5]} 49. b4 {[%clk 0:00:39.1]} 49... Kc6
{[%clk 0:00:06.4]} 50. b5+ {[%clk 0:00:39.9]} 50... Kb6 {[%clk 0:00:07.3]} 51.
Kb3 {[%clk 0:00:40]} 51... Kc7 {[%clk 0:00:07.8]} 52. Kb4 {[%clk 0:00:40.9]}
52... Kb6 {[%clk 0:00:08.5]} 53. c5+ {[%clk 0:00:41.3]} 53... Kc7 {[%clk
0:00:09.4]} 54. Ka5 {[%clk 0:00:41]} 54... Kb7 {[%clk 0:00:10.1]} 55. c6+ {[%clk
0:00:41.9]} 55... Kc7 {[%clk 0:00:11]} 56. Kb4 {[%clk 0:00:42.8]} 56... Kb6
{[%clk 0:00:11.2]} 57. Kc4 {[%clk 0:00:43.7]} 57... Kc7 {[%clk 0:00:11.3]} 58.
Kb4 {[%clk 0:00:44.3]} 58... Kb6 {[%clk 0:00:12.2]} 59. Kc4 {[%clk 0:00:43.2]}
59... Kc7 {[%clk 0:00:13.1]} 60. Kc5 {[%clk 0:00:43.4]} 60... Kb8 {[%clk
0:00:13]} 61. b6 {[%clk 0:00:43.1]} 61... Ka8 {[%clk 0:00:13.2]} 62. Kd6 {[%clk
0:00:42.4]} 62... Kb8 {[%clk 0:00:12.8]} 63. Kd7 {[%clk 0:00:41.1]} 63... Ka8
{[%clk 0:00:13.1]} 64. b7+ {[%clk 0:00:40.2]} 64... Kb8 {[%clk 0:00:12.1]} 65.
c7+ {[%clk 0:00:39.5]} 65... Kxb7 {[%clk 0:00:11.6]} 66. c8=Q+ {[%clk
0:00:40.4]} 66... Kb6 {[%clk 0:00:12.5]} 67. Qc4 {[%clk 0:00:39.7]} 67... Ka7
{[%clk 0:00:11.8]} 68. Qb5 {[%clk 0:00:39.6]} 68... Ka8 {[%clk 0:00:11.7]} 69.
Kc8 {[%clk 0:00:40.5]} 1-0

[Event "*** Titled Tuesday Blitz"]
[Site "Chess.com"]
[Date "2020.05.05"]
[Round "8"]
[White "Stewie_89"]
[Black "Maybe00"]
[Result "1/2-1/2"]
[WhiteElo "2641"]
[BlackElo "2798"]
[TimeControl "180+1"]
[EndTime "11:36:54 PDT"]
[Termination "Game drawn - insufficient material"]

1. e4 {[%clk 0:03:00.9]} 1... e5 {[%clk 0:03:00]} 2. Nf3 {[%clk 0:03:00.3]} 2...
Nc6 {[%clk 0:03:00.5]} 3. Bb5 {[%clk 0:03:00.5]} 3... a6 {[%clk 0:03:00.1]} 4.
Ba4 {[%clk 0:03:00.5]} 4... Nf6 {[%clk 0:03:00]} 5. d3 {[%clk 0:03:01]} 5... b5
{[%clk 0:02:59.4]} 6. Bb3 {[%clk 0:03:00.7]} 6... Bc5 {[%clk 0:02:59.4]} 7. O-O
{[%clk 0:02:52.4]} 7... O-O {[%clk 0:02:57.4]} 8. Nbd2 {[%clk 0:02:50.5]} 8...
h6 {[%clk 0:02:56.6]} 9. h3 {[%clk 0:02:46.6]} 9... d6 {[%clk 0:02:51.2]} 10. c3
{[%clk 0:02:46.4]} 10... Bb6 {[%clk 0:02:49.6]} 11. Re1 {[%clk 0:02:45]} 11...
Be6 {[%clk 0:02:48.3]} 12. Bc2 {[%clk 0:02:28.8]} 12... Re8 {[%clk 0:02:44.3]}
13. Nf1 {[%clk 0:02:28.3]} 13... d5 {[%clk 0:02:43.6]} 14. Qe2 {[%clk
0:02:26.4]} 14... dxe4 {[%clk 0:02:41.8]} 15. dxe4 {[%clk 0:02:25.1]} 15... Bc4
{[%clk 0:02:42]} 16. Qd1 {[%clk 0:02:24.4]} 16... Qxd1 {[%clk 0:02:42]} 17. Rxd1
{[%clk 0:02:23.9]} 17... Be2 {[%clk 0:02:41.1]} 18. Re1 {[%clk 0:02:21.7]} 18...
Bxf3 {[%clk 0:02:41]} 19. gxf3 {[%clk 0:02:22.6]} 19... Nh5 {[%clk 0:02:38.4]}
20. Be3 {[%clk 0:02:18.7]} 20... Bxe3 {[%clk 0:02:37]} 21. fxe3 {[%clk 0:02:17]}
21... Rad8 {[%clk 0:02:36.5]} 22. Rad1 {[%clk 0:02:16.4]} 22... Na5 {[%clk
0:02:35.1]} 23. Kf2 {[%clk 0:02:10.2]} 23... Nc4 {[%clk 0:02:30.7]} 24. b3
{[%clk 0:02:09.8]} 24... Nb6 {[%clk 0:02:29]} 25. Rxd8 {[%clk 0:02:03]} 25...
Rxd8 {[%clk 0:02:29.5]} 26. Rd1 {[%clk 0:02:03.9]} 26... Rxd1 {[%clk 0:02:29.2]}
27. Bxd1 {[%clk 0:02:04.8]} 27... c5 {[%clk 0:02:29]} 28. Nd2 {[%clk 0:02:03.7]}
28... Kf8 {[%clk 0:02:28.6]} 29. Be2 {[%clk 0:02:01]} 29... Ke7 {[%clk
0:02:23.3]} 30. c4 {[%clk 0:01:59.6]} 30... b4 {[%clk 0:02:20.7]} 31. f4 {[%clk
0:01:59.8]} 31... Nf6 {[%clk 0:02:19.5]} 32. Bg4 {[%clk 0:01:52.7]} 32... Kd6
{[%clk 0:02:14.8]} 33. Ke2 {[%clk 0:01:44.2]} 33... Nbd7 {[%clk 0:02:10.6]} 34.
Bxd7 {[%clk 0:01:41.4]} 34... Nxd7 {[%clk 0:02:11.5]} 35. Nf3 {[%clk 0:01:40.8]}
35... Ke6 {[%clk 0:02:10.7]} 36. Kd3 {[%clk 0:01:36.8]} 36... a5 {[%clk
0:02:09.9]} 37. Ke2 {[%clk 0:01:36.1]} 37... g6 {[%clk 0:02:05.6]} 38. Nd2
{[%clk 0:01:24.3]} 38... Nb8 {[%clk 0:02:01.3]} 39. Kf3 {[%clk 0:01:23.8]} 39...
Nc6 {[%clk 0:02:01.1]} 40. Kg4 {[%clk 0:01:20.1]} 40... exf4 {[%clk 0:01:50.5]}
41. exf4 {[%clk 0:01:19.8]} 41... Nd4 {[%clk 0:01:50.8]} 42. Nf3 {[%clk
0:01:18.8]} 42... Ne2 {[%clk 0:01:47.8]} 43. f5+ {[%clk 0:01:11.2]} 43... gxf5+
{[%clk 0:01:46]} 44. exf5+ {[%clk 0:01:11.4]} 44... Kf6 {[%clk 0:01:46.6]} 45.
Kh5 {[%clk 0:01:11.7]} 45... Nc1 {[%clk 0:01:43.1]} 46. Kxh6 {[%clk 0:01:02.1]}
46... Nxa2 {[%clk 0:01:42.8]} 47. Nd2 {[%clk 0:01:00.5]} 47... Nc1 {[%clk
0:01:31.5]} 48. h4 {[%clk 0:00:57.1]} 48... Kxf5 {[%clk 0:01:26.2]} 49. Kg7
{[%clk 0:00:56.5]} 49... Kg4 {[%clk 0:01:24.9]} 50. Kxf7 {[%clk 0:00:56.8]}
50... Kxh4 {[%clk 0:00:55.8]} 51. Ke6 {[%clk 0:00:56.1]} 51... Kg4 {[%clk
0:00:51.7]} 52. Kd5 {[%clk 0:00:53.6]} 52... Kf4 {[%clk 0:00:36.5]} 53. Kxc5
{[%clk 0:00:47]} 53... Ke3 {[%clk 0:00:36.6]} 54. Kb6 {[%clk 0:00:47]} 54...
Kxd2 {[%clk 0:00:29.6]} 55. c5 {[%clk 0:00:46.6]} 55... a4 {[%clk 0:00:18]} 56.
c6 {[%clk 0:00:39.5]} 56... axb3 {[%clk 0:00:18.5]} 57. c7 {[%clk 0:00:39.7]}
57... b2 {[%clk 0:00:19.2]} 58. c8=Q {[%clk 0:00:40.3]} 58... b1=Q {[%clk
0:00:19.7]} 59. Qc4 {[%clk 0:00:23]} 59... b3 {[%clk 0:00:18.2]} 60. Qf4+ {[%clk
0:00:22.8]} 60... Kc2 {[%clk 0:00:18.5]} 61. Qc4+ {[%clk 0:00:21.9]} 61... Kb2
{[%clk 0:00:17.8]} 62. Qd4+ {[%clk 0:00:22.1]} 62... Kc2 {[%clk 0:00:14.4]} 63.
Qc4+ {[%clk 0:00:20.4]} 63... Kd2 {[%clk 0:00:14.9]} 64. Qf4+ {[%clk 0:00:20.4]}
64... Ke2 {[%clk 0:00:15.1]} 65. Qg4+ {[%clk 0:00:20.8]} 65... Ke3 {[%clk
0:00:15]} 66. Qg3+ {[%clk 0:00:21.2]} 66... Kd4 {[%clk 0:00:14.6]} 67. Qd6+
{[%clk 0:00:21.2]} 67... Kc3 {[%clk 0:00:13.8]} 68. Qe5+ {[%clk 0:00:20.1]}
68... Kc4 {[%clk 0:00:12.1]} 69. Qc5+ {[%clk 0:00:19.6]} 69... Kd3 {[%clk
0:00:08.5]} 70. Qf5+ {[%clk 0:00:20]} 70... Kc3 {[%clk 0:00:08.9]} 71. Qxb1
{[%clk 0:00:20.5]} 71... b2 {[%clk 0:00:09.4]} 72. Kb5 {[%clk 0:00:20.2]} 72...
Nb3 {[%clk 0:00:08.7]} 73. Qe1+ {[%clk 0:00:18.7]} 73... Nd2 {[%clk 0:00:08.9]}
74. Ka4 {[%clk 0:00:15.1]} 74... b1=Q {[%clk 0:00:08.8]} 75. Qxb1 {[%clk
0:00:15.6]} 75... Nxb1 {[%clk 0:00:09.7]} 1/2-1/2

[Event "*** Titled Tuesday Blitz"]
[Site "Chess.com"]
[Date "2020.05.05"]
[Round "8"]
[White "Agnes66678"]
[Black "almatyonelove"]
[Result "0-1"]
[WhiteElo "2417"]
[BlackElo "2569"]
[TimeControl "180+1"]
[EndTime "11:36:54 PDT"]
[Termination "almatyonelove won by resignation"]

1. d4 {[%clk 0:03:00.9]} 1... Nf6 {[%clk 0:02:59.9]} 2. c4 {[%clk 0:03:01]} 2...
e6 {[%clk 0:02:54.1]} 3. g3 {[%clk 0:03:00.6]} 3... d5 {[%clk 0:02:51.8]} 4. Nf3
{[%clk 0:03:00.5]} 4... a6 {[%clk 0:02:46.8]} 5. Bg2 {[%clk 0:02:59]} 5... dxc4
{[%clk 0:02:47]} 6. O-O {[%clk 0:02:56.8]} 6... Nc6 {[%clk 0:02:46.4]} 7. e3
{[%clk 0:02:56.6]} 7... Rb8 {[%clk 0:02:44.9]} 8. Nfd2 {[%clk 0:02:53.3]} 8...
e5 {[%clk 0:02:39.7]} 9. Bxc6+ {[%clk 0:02:52.6]} 9... bxc6 {[%clk 0:02:39.8]}
10. dxe5 {[%clk 0:02:52.8]} 10... Ng4 {[%clk 0:02:36.4]} 11. Nxc4 {[%clk
0:02:46.1]} 11... Be6 {[%clk 0:02:36.8]} 12. Nbd2 {[%clk 0:02:32.4]} 12... Qd5
{[%clk 0:02:32.3]} 13. b3 {[%clk 0:02:24.1]} 13... Bb4 {[%clk 0:02:25.7]} 14.
Bb2 {[%clk 0:02:17.6]} 14... Rd8 {[%clk 0:02:21.2]} 15. Nf3 {[%clk 0:02:13.1]}
15... Qe4 {[%clk 0:02:17.5]} 16. Qe2 {[%clk 0:02:10.4]} 16... Bd5 {[%clk
0:02:15.4]} 17. h3 {[%clk 0:02:05.7]} 17... h5 {[%clk 0:02:12.6]} 18. a3 {[%clk
0:01:54.6]} 18... Be7 {[%clk 0:01:32]} 19. Ncd2 {[%clk 0:01:52.9]} 19... Qg6
{[%clk 0:01:31.9]} 20. e4 {[%clk 0:01:48.7]} 20... Be6 {[%clk 0:01:31.9]} 21.
Kg2 {[%clk 0:01:33]} 21... Bc5 {[%clk 0:01:19.7]} 22. b4 {[%clk 0:01:28.8]}
22... Bb6 {[%clk 0:01:19.5]} 23. hxg4 {[%clk 0:01:24.6]} 23... hxg4 {[%clk
0:01:18.9]} 24. Nh4 {[%clk 0:01:24.6]} 24... Qh6 {[%clk 0:01:14.2]} 25. Bc3
{[%clk 0:01:21.5]} 25... g5 {[%clk 0:01:13.6]} 26. Rh1 {[%clk 0:01:19.7]} 26...
gxh4 {[%clk 0:01:14.1]} 27. Rxh4 {[%clk 0:01:20.6]} 27... Qg7 {[%clk 0:01:14.3]}
28. Rxh8+ {[%clk 0:01:16.9]} 28... Qxh8 {[%clk 0:01:15.2]} 29. Rh1 {[%clk
0:01:17.1]} 29... Qg7 {[%clk 0:01:10.7]} 30. Qxa6 {[%clk 0:01:08.5]} 30... Qg6
{[%clk 0:01:05.4]} 31. Qe2 {[%clk 0:01:07.6]} 31... Ke7 {[%clk 0:00:36.2]} 32.
a4 {[%clk 0:01:06.7]} 32... Bd4 {[%clk 0:00:35.8]} 33. Bxd4 {[%clk 0:00:44.6]}
33... Rxd4 {[%clk 0:00:36.7]} 34. Nf1 {[%clk 0:00:44.8]} 34... Rxe4 {[%clk
0:00:34.4]} 35. Ne3 {[%clk 0:00:44.8]} 35... Rxe3 {[%clk 0:00:30.1]} 36. fxe3
{[%clk 0:00:36.2]} 36... Bd5+ {[%clk 0:00:30.1]} 37. Kg1 {[%clk 0:00:33.9]}
37... Qb1+ {[%clk 0:00:28.4]} 38. Kf2 {[%clk 0:00:33.8]} 38... Qxh1 {[%clk
0:00:27.1]} 39. Qxg4 {[%clk 0:00:33.6]} 39... Qg2+ {[%clk 0:00:27]} 40. Ke1
{[%clk 0:00:33.5]} 40... Qh1+ {[%clk 0:00:19.1]} 41. Ke2 {[%clk 0:00:32.6]}
41... Qh2+ {[%clk 0:00:17.5]} 42. Ke1 {[%clk 0:00:30.7]} 42... Qh6 {[%clk
0:00:17.2]} 43. e4 {[%clk 0:00:28.7]} 43... Qe3+ {[%clk 0:00:16.8]} 44. Kf1
{[%clk 0:00:27.3]} 44... Bxe4 {[%clk 0:00:16.5]} 45. a5 {[%clk 0:00:23.7]} 45...
Bf3 {[%clk 0:00:14.5]} 46. Qc4 {[%clk 0:00:22]} 46... Bd5 {[%clk 0:00:12.1]} 47.
Qg4 {[%clk 0:00:20]} 47... Qd3+ {[%clk 0:00:10.4]} 48. Kf2 {[%clk 0:00:19.4]}
48... Qc2+ {[%clk 0:00:10.6]} 49. Ke3 {[%clk 0:00:19.1]} 49... Qc3+ {[%clk
0:00:11]} 50. Kf2 {[%clk 0:00:18.9]} 50... Qxe5 {[%clk 0:00:11.1]} 51. a6 {[%clk
0:00:18]} 51... Qb2+ {[%clk 0:00:10.9]} 52. Kg1 {[%clk 0:00:17.6]} 52... Qa1+
{[%clk 0:00:11.1]} 53. Kf2 {[%clk 0:00:17.6]} 53... Qxa6 {[%clk 0:00:12]} 54.
Qg5+ {[%clk 0:00:17.2]} 54... Kd7 {[%clk 0:00:12.2]} 55. Qf5+ {[%clk 0:00:16.8]}
55... Be6 {[%clk 0:00:12.5]} 56. Qc5 {[%clk 0:00:16.5]} 56... Qc4 {[%clk
0:00:12.1]} 57. Qf8 {[%clk 0:00:15.8]} 57... Qd4+ {[%clk 0:00:11.3]} 58. Kf3
{[%clk 0:00:15.4]} 58... Qf6+ {[%clk 0:00:11.3]} 59. Ke3 {[%clk 0:00:15.1]}
59... Qe7 {[%clk 0:00:11.6]} 60. Qh8 {[%clk 0:00:14.2]} 60... Qxb4 {[%clk
0:00:11.6]} 61. Qf6 {[%clk 0:00:14.2]} 61... Qc5+ {[%clk 0:00:11.8]} 62. Kd2
{[%clk 0:00:13.6]} 62... Qd6+ {[%clk 0:00:11.4]} 63. Kc3 {[%clk 0:00:13.7]}
63... c5 {[%clk 0:00:11.4]} 64. g4 {[%clk 0:00:12.5]} 64... Qg3+ {[%clk
0:00:10.6]} 65. Kd2 {[%clk 0:00:11.5]} 65... Qxg4 {[%clk 0:00:10.6]} 66. Qe5
{[%clk 0:00:10.1]} 66... Qd4+ {[%clk 0:00:10.8]} 67. Qxd4+ {[%clk 0:00:10.2]}
67... cxd4 {[%clk 0:00:11.7]} 0-1

[Event "*** Titled Tuesday Blitz"]
[Site "Chess.com"]
[Date "2020.05.05"]
[Round "8"]
[White "mishikomchedlishvili"]
[Black "vlad_Sid"]
[Result "1-0"]
[WhiteElo "2851"]
[BlackElo "2635"]
[TimeControl "180+1"]
[EndTime "11:36:55 PDT"]
[Termination "mishikomchedlishvili won by checkmate"]

1. d4 {[%clk 0:03:00.9]} 1... Nf6 {[%clk 0:02:59]} 2. Bg5 {[%clk 0:02:59.7]}
2... e6 {[%clk 0:02:58.4]} 3. e4 {[%clk 0:02:59]} 3... h6 {[%clk 0:02:57.6]} 4.
Bxf6 {[%clk 0:02:59]} 4... Qxf6 {[%clk 0:02:58.5]} 5. c3 {[%clk 0:02:59.2]} 5...
d6 {[%clk 0:02:55.8]} 6. Bc4 {[%clk 0:02:57.4]} 6... g6 {[%clk 0:02:46.5]} 7.
Ne2 {[%clk 0:02:56.7]} 7... Bg7 {[%clk 0:02:46.3]} 8. O-O {[%clk 0:02:56]} 8...
O-O {[%clk 0:02:43.1]} 9. f4 {[%clk 0:02:55.7]} 9... Qe7 {[%clk 0:02:26.9]} 10.
e5 {[%clk 0:02:55.1]} 10... c5 {[%clk 0:02:23.6]} 11. Nd2 {[%clk 0:02:48.7]}
11... b6 {[%clk 0:02:21.5]} 12. Ng3 {[%clk 0:02:37.5]} 12... Bb7 {[%clk
0:02:19.6]} 13. Nf3 {[%clk 0:02:10.6]} 13... Nc6 {[%clk 0:02:12.2]} 14. Qe2
{[%clk 0:02:06.6]} 14... Rfd8 {[%clk 0:02:10.7]} 15. Rad1 {[%clk 0:01:55]} 15...
Rac8 {[%clk 0:02:07.2]} 16. Bb3 {[%clk 0:01:48]} 16... cxd4 {[%clk 0:02:06.2]}
17. cxd4 {[%clk 0:01:47.4]} 17... Nb4 {[%clk 0:02:03.3]} 18. Ne4 {[%clk
0:01:43.3]} 18... dxe5 {[%clk 0:01:45.8]} 19. fxe5 {[%clk 0:01:39.8]} 19... Ba6
{[%clk 0:01:45.6]} 20. Qf2 {[%clk 0:01:34.1]} 20... Bxf1 {[%clk 0:01:45]} 21.
Rxf1 {[%clk 0:01:33.8]} 21... Rc7 {[%clk 0:01:24]} 22. Kh1 {[%clk 0:01:31.5]}
22... Nc6 {[%clk 0:01:18.6]} 23. Ba4 {[%clk 0:01:15.3]} 23... Qb4 {[%clk
0:00:30.1]} 24. Bxc6 {[%clk 0:01:11.9]} 24... Rxc6 {[%clk 0:00:31]} 25. Qh4
{[%clk 0:01:10]} 25... Rdc8 {[%clk 0:00:26.3]} 26. h3 {[%clk 0:00:48.8]} 26...
Rc1 {[%clk 0:00:20.4]} 27. Rxc1 {[%clk 0:00:48.6]} 27... Rxc1+ {[%clk
0:00:21.3]} 28. Kh2 {[%clk 0:00:49.3]} 28... g5 {[%clk 0:00:20.7]} 29. Qh5
{[%clk 0:00:43.7]} 29... Qxb2 {[%clk 0:00:14.9]} 30. Nf6+ {[%clk 0:00:32.7]}
30... Kf8 {[%clk 0:00:13.2]} 31. Ne4 {[%clk 0:00:24.4]} 31... Qb1 {[%clk
0:00:10.8]} 32. Nd6 {[%clk 0:00:20.1]} 32... Rh1+ {[%clk 0:00:09.5]} 33. Kg3
{[%clk 0:00:19.5]} 33... Qg6 {[%clk 0:00:10.4]} 34. Qg4 {[%clk 0:00:19.4]} 34...
h5 {[%clk 0:00:09.2]} 35. Qxg5 {[%clk 0:00:19.6]} 35... Bh6 {[%clk 0:00:04.7]}
36. Qxg6 {[%clk 0:00:16.2]} 36... fxg6 {[%clk 0:00:05.6]} 37. Nh4 {[%clk
0:00:15.4]} 37... Kg7 {[%clk 0:00:05.9]} 38. Ne8+ {[%clk 0:00:15.4]} 38... Kf7
{[%clk 0:00:06.4]} 39. Nd6+ {[%clk 0:00:15.4]} 39... Kg7 {[%clk 0:00:06.9]} 40.
Ne8+ {[%clk 0:00:15.4]} 40... Kf8 {[%clk 0:00:05.5]} 41. Nd6 {[%clk 0:00:15.2]}
41... g5 {[%clk 0:00:05.1]} 42. Ng6+ {[%clk 0:00:13.5]} 42... Kg7 {[%clk
0:00:05.4]} 43. Ne7 {[%clk 0:00:13.6]} 43... Ra1 {[%clk 0:00:03.8]} 44. d5
{[%clk 0:00:11.4]} 44... exd5 {[%clk 0:00:02.1]} 45. Nef5+ {[%clk 0:00:10.7]}
45... Kf8 {[%clk 0:00:01.1]} 46. Nxh6 {[%clk 0:00:09.8]} 46... Rxa2 {[%clk
0:00:02]} 47. Kf3 {[%clk 0:00:06.5]} 47... Ra3+ {[%clk 0:00:02]} 48. Kf2 {[%clk
0:00:06.9]} 48... b5 {[%clk 0:00:02.4]} 49. Nhf5 {[%clk 0:00:06.5]} 49... Ra2+
{[%clk 0:00:03.3]} 50. Ke3 {[%clk 0:00:06.1]} 50... b4 {[%clk 0:00:04.2]} 51. e6
{[%clk 0:00:04.2]} 51... Ra3+ {[%clk 0:00:04.6]} 52. Kd4 {[%clk 0:00:03.5]}
52... Kg8 {[%clk 0:00:04.6]} 53. e7 {[%clk 0:00:03.7]} 53... Ra1 {[%clk
0:00:04.8]} 54. e8=Q+ {[%clk 0:00:03.5]} 54... Kh7 {[%clk 0:00:05.7]} 55. Qf7+
{[%clk 0:00:03.8]} 55... Kh8 {[%clk 0:00:06.6]} 56. Qg7# {[%clk 0:00:04.2]} 1-0